bitfinex/quotes_SOLUSD_20241216
["timestamp","ask_amount","ask_price","bid_price","bid_amount"]
[1734369938624,16.54543195,219.36,219.26,23.776884]
[1734369938804,16.43699355,219.34,219.27,20.0]
[1734369939013,16.43699355,219.34,219.23,0.6838783]
[1734369939014,16.43699355,219.32,219.23,23.776884]
[1734369939228,16.43699355,219.31,219.25,20.0]
[1734369939531,16.43699355,219.32,219.25,20.0]
[1734369940108,16.43699355,219.31,219.25,20.0]
[1734369940640,16.43699355,219.3,219.25,20.0]
[1734369940931,16.43699355,219.31,219.25,20.0]
[1734369941105,16.43699355,219.31,219.22,139.5144]
[1734369942249,16.43699355,219.32,219.22,139.5144]
[1734369942612,16.43699355,219.31,219.25,20.0]
[1734369945645,16.43699355,219.33,219.25,20.0]
[1734369947541,16.43699355,219.34,219.26,23.776884]
[1734369947751,16.43699355,219.35,219.29,20.0]
[1734369947922,0.1084384,219.36,219.29,20.0]
[1734369948748,0.1084384,219.36,219.3,20.0]
[1734369949247,16.43699355,219.34,219.27,137.9]
[1734369949550,16.43699355,219.34,219.22,1.6144]
[1734369949551,0.1084384,219.28,219.22,139.5144]
[1734369949757,0.1084384,219.28,219.25,20.0]
[1734369950059,0.1084384,219.28,219.22,1.6144]
[1734369951051,0.1084384,219.28,219.24,20.0]
[1734369951914,16.54543195,219.28,219.24,20.0]
[1734369952119,0.1084384,219.28,219.24,20.0]
[1734369952939,16.43699355,219.27,219.17,23.776884]
[1734369953134,16.43699355,219.26,219.16,146.0669]
[1734369953323,16.43699355,219.25,219.16,8.1669]
[1734369953957,16.43699355,219.26,219.16,8.1669]
[1734369954451,16.43699355,219.25,219.16,8.1669]
[1734369954759,16.43699355,219.24,219.16,1.5848]
[1734369954925,16.43699355,219.22,219.14,20.0]
[1734369955243,16.43699355,219.22,219.14,23.776884]
[1734369955959,16.43699355,219.21,219.11,145.968]
[1734369956248,20.0,219.24,219.11,145.968]
[1734369956249,16.43699355,219.2,219.12,137.9]
[1734369956452,16.43699355,219.2,219.11,145.968]
[1734369956641,0.12549,219.25,219.11,145.968]
[1734369956642,16.43699355,219.22,219.11,145.968]
[1734369957434,16.43699355,219.23,219.11,145.968]
[1734369957631,16.43699355,219.23,219.12,0.68432799]
[1734369957935,16.56248355,219.23,219.12,0.68432799]
[1734369958447,1.6593,219.26,219.15,23.776884]
[1734369958753,14.21546427,219.31,219.13,23.776884]
[1734369958754,16.43699355,219.29,219.17,23.776884]
[1734369958934,16.43699355,219.26,219.16,20.0]
[1734369959326,16.43699355,219.25,219.16,20.0]
[1734369960453,16.43699355,219.23,219.16,20.0]
[1734369960962,16.43699355,219.25,219.16,20.0]
[1734369961754,20.12549,219.29,219.16,20.0]
[1734369961755,16.43699355,219.26,219.16,20.0]
[1734369962237,16.43699355,219.27,219.2,20.0]
[1734369962568,16.54543195,219.28,219.2,20.0]
[1734369962952,16.43699355,219.27,219.2,20.0]
[1734369963256,16.54543195,219.28,219.2,20.0]
[1734369963470,0.1084384,219.28,219.2,20.0]
[1734369963762,0.1084384,219.28,219.21,20.0]
[1734369964440,0.1084384,219.28,219.25,20.0]
[1734369964641,1.5827,219.39,219.29,20.0]
[1734369964909,18.01969355,219.39,219.29,20.0]
[1734369965157,16.43699355,219.37,219.26,161.5684456]
[1734369965366,16.43699355,219.35,219.26,137.9]
[1734369965532,16.43699355,219.34,219.26,137.9]
[1734369966136,16.43699355,219.35,219.26,137.9]
[1734369966561,16.43699355,219.33,219.26,137.9]
[1734369966750,0.12549,219.38,219.22,23.776884]
[1734369966751,16.43699355,219.32,219.22,23.776884]
[1734369967043,16.43699355,219.3,219.21,6.0238]
[1734369967443,16.43699355,219.31,219.21,6.0238]
[1734369969457,30.89990903,219.38,219.22,23.776884]
[1734369969458,16.43699355,219.33,219.22,23.776884]
[1734369969660,16.43699355,219.34,219.22,23.776884]
[1734369969873,1.5827,219.39,219.22,23.776884]
[1734369969874,16.43699355,219.35,219.22,23.776884]
[1734369970069,1.5827,219.39,219.26,23.776884]
[1734369970070,16.43699355,219.36,219.26,23.776884]
[1734369970369,16.43699355,219.38,219.29,20.0]
[1734369973774,4.5925901,219.4,219.3,21.6336]
[1734369973775,16.43699355,219.39,219.3,21.6336]
[1734369973963,16.43699355,219.41,219.3,21.6336]
[1734369974146,0.12549,219.42,219.3,21.6336]
[1734369974147,16.43699355,219.42,219.3,21.6336]
[1734369974341,16.43699355,219.4,219.3,21.6336]
[1734369976143,16.43699355,219.4,219.31,20.0]
[1734369977170,16.43699355,219.39,219.31,20.0]
[1734369977473,18.29395264,219.43,219.32,23.776884]
[1734369977784,16.43699355,219.4,219.32,23.776884]
[1734369978278,16.43699355,219.41,219.32,23.776884]
[1734369979180,16.43699355,219.42,219.33,20.0]
[1734369979380,7.12510693,219.45,219.33,20.0]
[1734369979674,18.28764494,219.46,219.34,23.776884]
[1734369979917,16.43699355,219.44,219.34,23.776884]
[1734369982851,16.43699355,219.43,219.34,23.776884]
[1734369983182,16.43699355,219.42,219.34,23.776884]
[1734369983377,16.43699355,219.43,219.33,20.0]
[1734369983679,16.43699355,219.4,219.3,8.146]
[1734369984373,16.43699355,219.41,219.3,8.146]
[1734369986777,7.25059693,219.45,219.3,8.146]
[1734369986778,16.43699355,219.4,219.3,8.146]
[1734369987282,16.43699355,219.41,219.3,8.146]
[1734369987760,16.43699355,219.41,219.31,23.776884]
[1734369988980,0.12549,219.45,219.31,23.776884]
[1734369989161,16.43699355,219.43,219.34,20.0]
[1734369989566,0.12549,219.45,219.34,20.0]
[1734369989567,16.43699355,219.44,219.34,20.0]
[1734369990187,16.43699355,219.43,219.34,20.0]
[1734369990885,16.43699355,219.44,219.35,23.776884]
[1734369991572,16.43699355,219.43,219.34,20.0]
[1734369991893,16.43699355,219.44,219.35,23.776884]
[1734369992091,16.43699355,219.44,219.34,20.0]
[1734369992419,10.51556451,219.44,219.35,23.776884]
[1734369992568,10.51556451,219.46,219.35,23.776884]
[1734369992899,10.51556451,219.44,219.35,23.776884]
[1734369993194,10.51556451,219.45,219.35,23.776884]
[1734369994083,10.51556451,219.46,219.35,23.776884]
[1734369994295,10.51556451,219.46,219.38,20.0]
[1734369995201,1.84794826,219.5,219.38,20.0]
[1734369995398,10.51556451,219.48,219.39,1.54]
[1734369996399,10.51556451,219.5,219.4,6.5182]
[1734369996904,10.51556451,219.53,219.41,23.776884]
[1734369997073,10.51556451,219.52,219.41,23.776884]
[1734369997504,1.85774381,219.54,219.41,23.776884]
[1734369997505,4.59526974,219.54,219.41,23.776884]
[1734369997795,10.51556451,219.52,219.41,23.776884]
[1734369998176,10.51556451,219.51,219.41,23.776884]
[1734370000623,0.12549,219.53,219.4,6.5182]
[1734370000624,10.51556451,219.49,219.4,6.5182]
[1734370000817,10.51556451,219.45,219.39,1.54]
[1734370002019,10.51556451,219.44,219.35,6.5369]
[1734370002392,10.51556451,219.45,219.35,6.5369]
[1734370002594,10.51556451,219.44,219.35,6.5369]
[1734370003727,10.51556451,219.42,219.35,6.5369]
[1734370003891,43.902374,219.47,219.35,6.5369]
[1734370004091,0.12549,219.43,219.35,6.5369]
[1734370005019,0.12549,219.46,219.35,6.5369]
[1734370005228,20.0,219.48,219.35,6.5369]
[1734370005389,10.51556451,219.45,219.35,6.5369]
[1734370005792,0.12549,219.44,219.35,6.5369]
[1734370005991,10.51556451,219.45,219.35,6.5369]
[1734370007026,10.51556451,219.44,219.35,6.5369]
[1734370009124,0.12549,219.44,219.35,6.5369]
[1734370009595,20.0,219.48,219.35,6.5369]
[1734370009795,10.51556451,219.46,219.35,6.5369]
[1734370010013,10.64105451,219.47,219.35,6.5369]
[1734370010229,10.51556451,219.46,219.35,6.5369]
[1734370010406,10.51556451,219.46,219.35,6.4983482]
[1734370011723,0.12549,219.44,219.35,6.4983482]
[1734370012230,10.64105451,219.44,219.35,6.4983482]
[1734370012400,0.12549,219.43,219.35,6.4983482]
[1734370013841,10.51556451,219.43,219.35,6.4983482]
[1734370014999,0.12549,219.43,219.35,6.4983482]
[1734370016496,23.902374,219.43,219.35,6.4983482]
[1734370017099,23.902374,219.44,219.35,6.4983482]
[1734370017644,1.84399332,219.45,219.35,6.4983482]
[1734370017797,10.51556451,219.45,219.35,6.4983482]
[1734370019699,34.41793851,219.46,219.35,6.4983482]
[1734370020927,23.902374,219.46,219.35,6.4983482]
[1734370021108,34.41793851,219.46,219.35,6.4983482]
[1734370021318,1.80995572,219.47,219.38,20.0]
[1734370021518,7.12510693,219.5,219.39,0.68352769]
[1734370021747,7.12510693,219.5,219.4,1.5627]
[1734370021945,17.64067144,219.51,219.4,1.5627]
[1734370022428,10.51556451,219.51,219.4,1.5627]
[1734370022816,1.80017528,219.51,219.4,1.5627]
[1734370023145,10.51556451,219.52,219.4,1.5627]
[1734370023449,0.12549,219.52,219.4,2.24613244]
[1734370023629,23.902374,219.52,219.4,2.24613244]
[1734370024445,23.776884,219.52,219.4,2.24613244]
[1734370025419,10.51556451,219.51,219.4,2.24613244]
[1734370025640,23.776884,219.5,219.4,2.24613244]
[1734370025951,34.29244851,219.5,219.4,1.5627]
[1734370026321,34.29244851,219.51,219.4,1.5627]
[1734370026519,23.776884,219.51,219.4,1.5627]
[1734370026719,23.776884,219.52,219.41,6.7585872]
[1734370027032,34.29244851,219.52,219.41,6.0752]
[1734370027441,23.776884,219.52,219.41,6.75858529]
[1734370027848,2.73752593,219.54,219.41,6.75858529]
[1734370028029,23.776884,219.53,219.41,6.75858529]
[1734370028230,10.51556451,219.56,219.41,6.75858529]
[1734370028440,12.31664864,219.56,219.44,20.0]
[1734370028642,20.0,219.55,219.44,20.683278]
[1734370028827,4.47370868,219.56,219.45,1.5311]
[1734370029022,0.5642931,219.57,219.45,1.5311]
[1734370029224,0.5642931,219.57,219.46,0.6832426]
[1734370030735,0.5642931,219.57,219.47,6.0842]
[1734370031351,11.07985761,219.57,219.47,6.0842]
[1734370032127,34.29244851,219.56,219.47,6.0842]
[1734370033028,23.776884,219.56,219.47,6.0842]
[1734370033623,34.29244851,219.56,219.47,6.0842]
[1734370034227,10.51556451,219.52,219.47,6.0842]
[1734370034530,10.51556451,219.52,219.45,1.5311]
[1734370034531,23.776884,219.5,219.45,1.5311]
[1734370035147,23.776884,219.51,219.45,1.5311]
[1734370036341,23.776884,219.52,219.45,1.5311]
[1734370036544,23.902374,219.53,219.45,1.5311]
[1734370036748,23.776884,219.53,219.45,1.5311]
[1734370037426,23.776884,219.54,219.45,1.5311]
[1734370037629,23.776884,219.56,219.45,2.21442225]
[1734370037844,0.5642931,219.57,219.45,22.21442225]
[1734370038558,10.51556451,219.55,219.45,1.5311]
[1734370038749,10.51556451,219.54,219.45,1.5311]
[1734370039051,23.776884,219.54,219.45,1.5311]
[1734370039255,23.902374,219.56,219.45,1.5311]
[1734370039453,0.5642931,219.57,219.45,22.21437537]
[1734370040728,10.51556451,219.55,219.45,21.5311]
[1734370040928,23.776884,219.54,219.45,21.5311]
[1734370041228,23.902374,219.56,219.45,21.5311]
[1734370041427,34.41793851,219.56,219.45,21.5311]
[1734370041652,10.51556451,219.54,219.45,21.5311]
[1734370041855,23.776884,219.53,219.45,21.5311]
[1734370042064,23.776884,219.53,219.45,1.5311]
[1734370042861,34.29244851,219.51,219.45,1.5311]
[1734370043059,23.776884,219.53,219.45,1.5311]
[1734370043249,10.51556451,219.51,219.45,1.5311]
[1734370043756,23.776884,219.5,219.45,1.5311]
[1734370044636,23.776884,219.51,219.45,1.5311]
[1734370045365,34.29244851,219.51,219.45,1.5311]
[1734370045670,10.51556451,219.48,219.45,1.5311]
[1734370045864,23.776884,219.51,219.36,137.9]
[1734370045865,34.29244851,219.47,219.4,1.5077]
[1734370046067,34.29244851,219.45,219.4,1.5077]
[1734370046238,10.51556451,219.44,219.4,1.5077]
[1734370046437,23.776884,219.43,219.4,1.5077]
[1734370046867,34.29244851,219.43,219.36,6.1891]
[1734370047568,23.776884,219.43,219.36,6.1891]
[1734370047770,23.776884,219.44,219.36,6.1891]
[1734370047965,34.29244851,219.44,219.36,6.1891]
[1734370049457,23.776884,219.44,219.36,6.1891]
[1734370049755,5.0,219.54,219.4,1.6629]
[1734370049756,10.51556451,219.51,219.4,1.6629]
[1734370050141,0.12549,219.5,219.4,1.6629]
[1734370050336,10.51556451,219.51,219.4,1.6629]
[1734370050670,13.26460497,219.55,219.44,20.0]
[1734370050842,13.26460497,219.55,219.41,6.6399]
[1734370051048,2.74904046,219.55,219.44,20.0]
[1734370051253,2.35043982,219.57,219.45,1.6096]
[1734370051485,0.5642931,219.57,219.45,1.6096]
[1734370051644,11.07985761,219.57,219.45,1.6096]
[1734370052174,10.51556451,219.56,219.45,1.6096]
[1734370052856,23.776884,219.55,219.45,1.6096]
[1734370053162,0.5642931,219.57,219.45,1.6096]
[1734370054184,10.51556451,219.55,219.45,1.6096]
[1734370054349,10.51556451,219.54,219.45,1.6096]
[1734370054544,0.12549,219.54,219.45,1.6096]
[1734370054749,10.51556451,219.56,219.45,1.6096]
[1734370055198,10.51556451,219.54,219.45,1.6096]
[1734370055491,34.29244851,219.56,219.45,1.6096]
[1734370055851,0.5642931,219.57,219.45,1.6096]
[1734370056078,11.07985761,219.57,219.45,1.6096]
[1734370056486,10.51556451,219.56,219.45,1.6096]
[1734370057957,0.5642931,219.57,219.5,0.12549]
[1734370058164,0.5642931,219.57,219.54,20.0]
[1734370058365,0.5642931,219.57,219.55,1.6382]
[1734370058569,0.5642931,219.57,219.55,2.32112335]
[1734370058967,0.5642931,219.57,219.56,0.12549]
[1734370059159,1.0,219.65,219.57,6.0528]
[1734370059359,1.0,219.65,219.58,0.68288764]
[1734370060289,1.0,219.65,219.57,6.0528]
[1734370060464,1.0,219.65,219.57,5.5528]
[1734370060664,23.776884,219.64,219.57,5.5528]
[1734370061083,23.776884,219.62,219.57,5.5528]
[1734370061288,40.16874665,219.62,219.57,5.5528]
[1734370061672,40.16874665,219.64,219.57,5.5528]
[1734370062266,16.39186265,219.63,219.57,5.5528]
[1734370062469,23.776884,219.6,219.55,1.6382]
[1734370064083,16.39186265,219.63,219.55,1.6382]
[1734370064084,23.776884,219.62,219.55,1.6382]
[1734370065278,16.39186265,219.59,219.55,1.6382]
[1734370065482,23.776884,219.58,219.49,1.5042]
[1734370065671,43.776884,219.63,219.5,0.6831921]
[1734370065872,20.0,219.61,219.5,0.6831921]
[1734370066176,17.39186265,219.65,219.51,138.02549]
[1734370066377,17.39186265,219.65,219.52,0.68296065]
[1734370067079,17.39186265,219.65,219.54,20.0]
[1734370067576,23.776884,219.64,219.54,20.0]
[1734370067777,23.776884,219.64,219.55,8.0334]
[1734370067978,1.0,219.65,219.55,8.0334]
[1734370069688,23.776884,219.64,219.55,8.0334]
[1734370074710,1.0,219.65,219.55,8.0334]
[1734370074910,20.0,219.64,219.55,8.0334]
[1734370075401,23.776884,219.64,219.55,8.0334]
[1734370076187,40.16874665,219.64,219.55,8.0334]
[1734370076892,23.776884,219.64,219.55,8.0334]
[1734370077596,40.16874665,219.64,219.55,8.0334]
[1734370078383,16.39186265,219.62,219.55,8.0334]
[1734370078618,23.776884,219.62,219.55,8.0334]
[1734370079686,16.39186265,219.62,219.55,8.0334]
[1734370079889,23.776884,219.61,219.55,1.6576]
[1734370080089,34.27636613,219.61,219.55,1.6576]
[1734370080598,10.49948213,219.59,219.5,6.0336]
[1734370080790,23.776884,219.58,219.5,6.0336]
[1734370080992,34.27636613,219.58,219.5,6.0336]
[1734370081199,23.776884,219.58,219.5,6.0336]
[1734370082518,20.0,219.58,219.5,6.0336]
[1734370082704,23.776884,219.57,219.5,6.0336]
[1734370082898,10.49948213,219.59,219.5,6.0336]
[1734370083233,23.776884,219.58,219.5,6.0336]
[1734370084127,1.0,219.65,219.5,6.0336]
[1734370084128,23.776884,219.62,219.5,6.0336]
[1734370085110,23.776884,219.62,219.51,0.6831096]
[1734370085431,11.49948213,219.65,219.51,0.6831096]
[1734370085603,20.0,219.62,219.51,0.6831096]
[1734370086617,10.49948213,219.64,219.51,0.6831096]
[1734370087110,23.776884,219.63,219.51,0.6831096]
[1734370087597,23.103379,219.63,219.51,0.6831096]
[1734370088924,10.49948213,219.63,219.5,6.0336]
[1734370089724,23.776884,219.62,219.5,6.0336]
[1734370090529,34.27636613,219.64,219.5,6.0336]
[1734370090827,23.776884,219.61,219.5,6.0336]
[1734370091004,23.776884,219.59,219.5,6.0336]
[1734370091409,10.49948213,219.58,219.5,6.0336]
[1734370091627,23.776884,219.57,219.5,6.0336]
[1734370093405,34.27636613,219.57,219.5,6.0336]
[1734370093606,23.776884,219.55,219.5,6.0336]
[1734370093827,34.27636613,219.57,219.5,6.0336]
[1734370094527,23.776884,219.57,219.5,6.0336]
[1734370094716,34.27636613,219.57,219.48,1.6054]
[1734370094926,23.776884,219.55,219.48,1.6054]
[1734370099320,23.902374,219.56,219.48,1.6054]
[1734370099634,23.776884,219.55,219.48,1.6054]
[1734370100947,23.776884,219.59,219.48,1.6054]
[1734370101103,30.49948213,219.6,219.48,1.6054]
[1734370101305,10.49948213,219.59,219.48,1.6054]
[1734370101507,0.12549,219.58,219.48,1.6054]
[1734370102447,23.902374,219.58,219.48,1.6054]
[1734370102937,23.902374,219.59,219.48,1.6054]
[1734370103450,10.49948213,219.58,219.48,1.6054]
[1734370103611,34.40185613,219.59,219.48,1.6054]
[1734370103923,23.902374,219.59,219.48,1.6054]
[1734370104308,23.776884,219.59,219.48,1.6054]
[1734370105329,0.12549,219.58,219.48,1.6054]
[1734370105912,23.776884,219.59,219.48,1.6054]
[1734370108041,23.776884,219.61,219.49,6.0273]
[1734370108235,7.12510693,219.63,219.49,6.0273]
[1734370108409,20.0,219.62,219.49,6.0273]
[1734370108617,20.0,219.62,219.5,0.68310748]
[1734370108836,0.12549,219.64,219.52,20.0]
[1734370109212,10.49948213,219.63,219.52,20.0]
[1734370109446,10.49948213,219.61,219.52,20.0]
[1734370109744,23.902374,219.61,219.52,20.0]
[1734370109953,23.776884,219.61,219.52,20.0]
[1734370110844,34.27636613,219.61,219.52,20.0]
[1734370111453,23.776884,219.59,219.52,20.0]
[1734370111668,23.776884,219.59,219.49,6.0273]
[1734370112261,20.0,219.56,219.49,6.0273]
[1734370112437,34.27636613,219.59,219.49,6.0273]
[1734370112635,23.776884,219.57,219.49,6.0273]
[1734370113037,23.776884,219.58,219.49,6.0273]
[1734370114064,23.902374,219.59,219.49,6.0273]
[1734370115724,0.12549,219.57,219.49,6.0273]
[1734370115926,23.776884,219.56,219.49,6.0273]
[1734370116433,23.902374,219.57,219.49,6.0273]
[1734370116848,34.40185613,219.57,219.49,6.0273]
[1734370117034,23.902374,219.54,219.48,1.6054]
[1734370117235,34.40185613,219.54,219.48,1.6054]
[1734370117642,23.902374,219.54,219.48,1.6054]
[1734370117947,23.776884,219.55,219.48,1.6054]
[1734370118244,23.776884,219.57,219.48,1.6054]
[1734370118432,0.12549,219.56,219.48,1.6054]
[1734370119335,23.776884,219.54,219.48,1.6054]
[1734370122661,23.902374,219.56,219.48,1.6054]
[1734370123238,0.12549,219.57,219.48,1.6054]
[1734370123424,23.776884,219.59,219.48,1.6054]
[1734370123748,7.12510693,219.6,219.48,1.6054]
[1734370123749,34.27636613,219.6,219.48,1.6054]
[1734370123951,23.776884,219.6,219.48,1.6054]
[1734370124163,10.49948213,219.61,219.48,1.6054]
[1734370124459,10.49948213,219.62,219.48,1.6054]
[1734370125071,0.12549,219.63,219.5,6.6662]
[1734370125350,2.85227105,219.65,219.53,20.0]
[1734370125560,18.62458906,219.65,219.53,20.0]
[1734370125750,0.12549,219.64,219.53,20.0]
[1734370125927,1.0,219.65,219.54,20.0]
[1734370126127,1.0,219.65,219.55,1.6471]
[1734370126964,10.49948213,219.63,219.55,1.6471]
[1734370127186,23.776884,219.64,219.55,1.6471]
[1734370130944,1.0,219.65,219.55,1.6471]
[1734370131145,23.776884,219.64,219.55,1.6471]
[1734370135686,1.0,219.65,219.56,0.68298853]
[1734370139094,1.0,219.65,219.55,1.6471]
[1734370139667,1.0,219.65,219.55,2.33007028]
[1734370141268,11.49948213,219.65,219.55,2.33007028]
[1734370141492,1.0,219.65,219.55,2.33007028]
[1734370141708,10.49948213,219.63,219.55,1.6471]
[1734370141871,1.0,219.65,219.55,1.6471]
[1734370141872,34.27636613,219.64,219.55,1.6471]
[1734370144511,23.776884,219.64,219.55,1.6471]
[1734370144674,1.0,219.65,219.55,1.6471]
[1734370146376,1.0,219.65,219.56,0.68293746]
[1734370147083,1.0,219.65,219.57,6.46849]
[1734370147302,1.0,219.65,219.58,0.68282575]
[1734370148094,1.0,219.65,219.6,20.0]
[1734370149143,1.0,219.65,219.58,0.68282575]
[1734370149610,1.0,219.65,219.6,20.0]
[1734370150402,1.0,219.65,219.58,0.68282575]
[1734370150403,1.0,219.65,219.61,20.0]
[1734370150629,11.49948213,219.65,219.6,20.0]
[1734370150803,10.49948213,219.63,219.57,6.343]
[1734370151006,10.49948213,219.64,219.57,6.343]
[1734370151339,1.0,219.65,219.6,0.12549]
[1734370151640,1.0,219.65,219.6,0.68272334]
[1734370152111,1.0,219.65,219.61,20.0]
[1734370152437,1.0,219.65,219.62,0.68273533]
[1734370155807,1.0,219.65,219.59,1.6463]
[1734370157132,1.0,219.65,219.6,20.0]
[1734370157316,1.0,219.65,219.6,20.68276615]
[1734370159314,1.0,219.65,219.61,23.902374]
[1734370159544,1.0,219.65,219.62,0.68271955]
[1734370160125,1.0,219.65,219.64,20.0]
[1734370161139,1.0,219.65,219.52,144.4404]
[1734370161314,1.0,219.65,219.53,0.682905]
[1734370161644,1.0,219.65,219.54,0.12549]
[1734370161947,1.0,219.65,219.56,0.12549]
[1734370162542,1.0,219.65,219.61,20.0]
[1734370163742,1.0,219.65,219.58,23.902374]
[1734370163743,1.0,219.65,219.6,20.0]
[1734370164855,1.0,219.65,219.61,2.2223622]
[1734370166434,1.0,219.65,219.64,20.0]
[1734370174560,1.0,219.65,219.63,20.0]
[1734370183538,1.0,219.65,219.63,157.9]
[1734370185844,0.0001,219.65,219.63,157.9]
[1734370189167,7.12510688,219.7,219.66,0.12549]
[1734370189400,14.25021387,219.76,219.68,157.8999]
[1734370189582,14.25021387,219.76,219.69,0.68253867]
[1734370190104,14.25021387,219.77,219.68,157.8999]
[1734370190268,24.749696,219.78,219.68,157.8999]
[1734370191470,10.49948213,219.76,219.68,157.8999]
[1734370191670,10.49948213,219.75,219.68,157.8999]
[1734370192003,24.749696,219.77,219.68,157.8999]
[1734370192201,14.25021387,219.76,219.68,157.8999]
[1734370192371,10.49948213,219.77,219.68,157.8999]
[1734370192372,24.749696,219.77,219.68,157.8999]
[1734370192985,10.49948213,219.76,219.68,157.8999]
[1734370193204,24.749696,219.76,219.68,157.8999]
[1734370193705,10.49948213,219.73,219.68,157.8999]
[1734370193909,10.49948213,219.75,219.68,157.8999]
[1734370194123,10.49948213,219.74,219.68,157.8999]
[1734370195187,10.49948213,219.75,219.68,157.8999]
[1734370195584,10.49948213,219.75,219.67,20.0]
[1734370196102,10.49948213,219.74,219.67,20.0]
[1734370197094,10.49948213,219.73,219.67,20.0]
[1734370197298,10.49948213,219.72,219.67,20.0]
[1734370198091,10.49948213,219.73,219.67,20.0]
[1734370198513,10.49948213,219.72,219.67,20.0]
[1734370200289,14.25021387,219.76,219.67,20.0]
[1734370200290,10.49948213,219.71,219.67,20.0]
[1734370200491,10.49948213,219.69,219.64,1.5919]
[1734370200911,38.15258787,219.75,219.64,1.5919]
[1734370200912,10.49948213,219.7,219.64,1.5919]
[1734370201498,10.49948213,219.71,219.64,1.5919]
[1734370201703,10.49948213,219.7,219.65,20.0]
[1734370202299,10.49948213,219.71,219.65,20.0]
[1734370202597,10.49948213,219.72,219.67,20.0]
[1734370202893,10.49948213,219.7,219.67,20.0]
[1734370203114,10.49948213,219.72,219.67,20.0]
[1734370203705,10.49948213,219.71,219.67,20.0]
[1734370203910,10.49948213,219.72,219.67,20.0]
[1734370204616,10.49948213,219.73,219.68,20.0]
[1734370205017,14.25021387,219.76,219.68,20.0]
[1734370205257,10.49948213,219.74,219.68,20.0]
[1734370205422,10.49948213,219.73,219.68,20.0]
[1734370205798,10.49948213,219.72,219.68,20.0]
[1734370206702,10.49948213,219.73,219.68,20.0]
[1734370207104,10.49948213,219.72,219.68,20.0]
[1734370207309,14.37570387,219.76,219.68,157.8999]
[1734370207310,10.49948213,219.71,219.68,157.8999]
[1734370208046,10.49948213,219.71,219.68,137.8999]
[1734370208404,10.49948213,219.74,219.68,137.8999]
[1734370209133,10.49948213,219.75,219.68,137.8999]
[1734370209312,10.49948213,219.75,219.71,20.0]
[1734370210502,10.49948213,219.74,219.71,20.0]
[1734370210833,10.49948213,219.73,219.71,20.0]
[1734370211215,10.49948213,219.72,219.71,20.0]
[1734370211519,10.62497213,219.72,219.68,137.8999]
[1734370211707,10.49948213,219.71,219.7,20.0]
[1734370212241,10.49948213,219.71,219.65,20.0]
[1734370213606,10.62497213,219.72,219.65,20.0]
[1734370213805,10.62497213,219.71,219.65,20.0]
[1734370214006,10.49948213,219.69,219.65,20.0]
[1734370214326,10.49948213,219.7,219.65,20.0]
[1734370214634,10.49948213,219.69,219.65,20.0]
[1734370216018,10.49948213,219.69,219.62,137.8999]
[1734370216334,10.49948213,219.68,219.62,137.8999]
[1734370216589,0.12549,219.71,219.62,137.8999]
[1734370216880,9.99948213,219.72,219.62,137.8999]
[1734370217432,9.99948213,219.72,219.65,20.0]
[1734370218860,15.83931387,219.75,219.65,20.0]
[1734370219050,10.49948213,219.75,219.65,20.0]
[1734370219953,10.49948213,219.74,219.65,157.8999]
[1734370220625,24.749696,219.75,219.65,157.8999]
[1734370221109,24.749696,219.76,219.65,157.8999]
[1734370221306,10.62497213,219.75,219.65,157.8999]
[1734370221482,0.12549,219.72,219.65,157.8999]
[1734370221684,10.62497213,219.72,219.65,157.8999]
[1734370221898,10.49948213,219.71,219.65,157.8999]
[1734370222286,10.49948213,219.7,219.65,157.8999]
[1734370222628,0.12549,219.69,219.65,157.8999]
[1734370223816,0.12549,219.69,219.59,1.5292]
[1734370223817,10.49948213,219.67,219.59,139.4291]
[1734370224060,10.49948213,219.66,219.59,139.4291]